{"text_format":"1","workbook":"xlsx","n_sheets":2,"sheets":["01","Liste"],"not_rendered":{"charts":0,"images":0,"macros":1,"external_links":0,"defined_names":2,"comments":0,"pivot_tables":0},"unopened":[],"bounds":{"document_bytes":16777216,"sheet_cells":100000,"rows_first":2000,"rows_last":500,"rows_between":2000,"halvings":0,"cell_chars":16384,"cell_head_chars":4096},"cells_cut":0,"cells_raw":0,"read":"whole","date_system":"1900"}

{"sheet":"01","index":0,"n_rows":699,"n_cols":9,"rows_kept":699,"cut":false,"hidden":false,"merged":[[0,4,0,7]]}
["Journal de Banque",null,null,null,"JANVIER"]
[]
["Date","Ref","Section","Libellé","Débit","Pnt","Crédit","Solde","Obs"]
[null,null,"solde au 01",null,null,null,null,null,"Total par poste :"]
["2020-01-01","Solde","Solde","Solde",null,"x",null,0]
["2020-01-02",null,null,null,null,null,null,{"$f":"H5-E6+G6","v":0}]
["2020-01-02",null,null,null,null,null,null,0]
["2020-01-02",null,null,null,null,null,null,0]
["2020-01-02",null,"DRFIP Retraite Solange",null,null,null,null,0]
["2020-01-02",null,null,null,null,null,null,0]
["2020-01-02",null,null,null,null,null,null,0]
["2020-01-02",null,null,null,null,null,null,0]
["2020-01-02",null,null,null,null,null,null,0]
["2020-01-02",null,null,null,null,null,null,0]
["2020-01-02",null,null,null,null,null,null,0]
["2020-01-06",null,null,null,null,null,null,0]
["2020-01-06",null,null,null,null,null,null,0]
["2020-01-07",null,null,null,null,null,null,0]
["2020-01-07",null,null,null,null,null,null,0]
["2020-01-07",null,null,null,null,null,null,0]
["2020-01-07",null,null,null,null,null,null,0]
["2020-01-09",null,null,null,null,null,null,0]
["2020-01-10",null,null,null,null,null,null,0]
["2020-01-10",null,null,null,null,null,null,0]
["2020-01-10",null,null,null,null,null,null,0]
["2020-01-10",null,null,null,null,null,null,0]
["2020-01-10",null,null,null,null,null,null,0]
["2020-01-10",null,null,null,null,null,null,0]
["2020-01-11",null,null,null,null,null,null,0]
["2020-01-11",null,null,null,null,null,null,0]
["2020-01-13",null,null,null,null,null,null,0]
["2020-01-14",null,null,null,null,null,null,0]
["2020-01-15",null,null,null,null,null,null,0]
["2020-01-16",null,null,null,null,null,null,0]
["2020-01-17",null,null,null,null,null,null,0]
["2020-01-18",null,null,null,null,null,null,0]
["2020-01-18",null,null,null,null,null,null,0]
["2020-01-18",null,null,null,null,null,null,0]
["2020-01-20",null,null,null,null,null,null,0]
["2020-01-21",null,null,null,null,null,null,0]
["2020-01-21",null,null,null,null,null,null,0]
["2020-01-21",null,null,null,null,null,null,0]
["2020-01-24",null,null,null,null,null,null,0]
["2020-01-28",null,null,null,null,null,null,0]
["2020-01-28",null,null,null,null,null,null,0]
["2020-01-29",null,null,null,null,null,null,0]
["2020-01-29",null,null,null,null,null,null,0]
["2020-01-29",null,null,null,null,null,null,0]
["2020-01-31",null,null,null,null,null,null,0]
["2020-01-31",null,null,null,null,null,null,0]
["2020-01-31",null,null,null,null,null,null,0]
["2020-01-31",null,null,null,null,null,null,0]
["2020-01-31",null,null,null,null,null,null,0]
["2020-01-31",null,null,null,null,null,null,0]
["2020-01-31",null,null,null,null,null,null,0]
["2020-01-31",null,null,null,null,null,null,0]
["2020-01-31",null,null,null,null,null,null,0]
["2020-01-31",null,null,null,null,null,null,0]
["2020-01-31",null,null,null,null,null,null,0]
["2020-01-31",null,null,null,null,null,null,0]
["2020-01-31",null,null,null,null,null,null,0]
["2020-01-31",null,null,null,null,null,null,0]
["2020-01-31",null,null,null,null,null,null,0]
["2020-01-31",null,null,null,null,null,null,0]
["2020-01-31",null,null,null,null,null,null,0]
["2020-01-31",null,null,null,null,null,null,0]
["2020-01-31",null,null,null,null,null,null,0]
["2020-01-31",null,null,null,null,null,null,0]
["2020-01-31",null,null,null,null,null,null,0]
["2020-01-31",null,null,null,null,null,null,{"$f":"H69-E70+G70","v":0}]
["2020-01-31",null,null,null,null,null,null,0]
["2020-01-31",null,null,null,null,null,null,0]
["2020-01-31",null,null,null,null,null,null,0]
["2020-01-31",null,null,null,null,null,null,0]
["2020-01-31",null,null,null,null,null,null,0]
["2020-01-31",null,null,null,null,null,null,0]
["2020-01-31",null,null,null,null,null,null,0]
["2020-01-31",null,null,null,null,null,null,0]
["2020-01-31",null,null,null,null,null,null,0]
["2020-01-31",null,null,null,null,null,null,0]
["2020-01-31",null,null,null,null,null,null,0]
["2020-01-31",null,null,null,null,null,null,0]
["2020-01-31",null,null,null,null,null,null,0]
["2020-01-31",null,null,null,null,null,null,0]
["2020-01-31",null,null,null,null,null,null,0]
["2020-01-31",null,null,null,null,null,null,0]
["2020-02-01",null,null,null,null,null,null,0]
["2020-02-01",null,null,null,null,null,null,0]
["2020-02-01",null,null,null,null,null,null,0]
["2020-02-02",null,null,null,null,null,null,0]
["2020-02-03",null,null,null,null,null,null,0]
["2020-02-03",null,null,null,null,null,null,0]
["2020-02-05",null,null,null,null,null,null,0]
["2020-02-06",null,null,null,null,null,null,0]
["2020-02-07",null,null,null,null,null,null,0]
["2020-02-07",null,null,null,null,null,null,0]
["2020-02-07",null,null,null,null,null,null,0]
["2020-02-07",null,null,null,null,null,null,0]
["2020-02-07",null,null,null,null,null,null,0]
["2020-02-10",null,null,null,null,null,null,0]
["2020-02-10",null,null,null,null,null,null,0]
["2020-02-10",null,null,null,null,null,null,0]
["2020-02-10",null,null,null,null,null,null,0]
["2020-02-10",null,null,null,null,null,null,0]
["2020-02-10",null,null,null,null,null,null,0]
["2020-02-10",null,null,null,null,null,null,0]
["2020-02-10",null,null,null,null,null,null,0]
["2020-02-11",null,null,null,null,null,null,0]
["2020-02-11",null,null,null,null,null,null,0]
["2020-02-12",null,null,null,null,null,null,0]
["2020-02-12",null,null,null,null,null,null,0]
["2020-02-13",null,null,null,null,null,null,0]
["2020-02-14",null,null,null,null,null,null,0]
["2020-02-15",null,null,null,null,null,null,0]
["2020-02-16",null,null,null,null,null,null,0]
["2020-02-17",null,null,null,null,null,null,0]
["2020-02-20",null,null,null,null,null,null,0]
["2020-02-20",null,null,null,null,null,null,0]
["2020-02-20",null,null,null,null,null,null,0]
["2020-02-21",null,null,null,null,null,null,0]
["2020-02-21",null,null,null,null,null,null,0]
["2020-02-21",null,null,null,null,null,null,0]
["2020-02-21",null,null,null,null,null,null,0]
["2020-02-24",null,null,null,null,null,null,0]
["2020-02-24",null,null,null,null,null,null,0]
["2020-02-25",null,null,null,null,null,null,0]
["2020-02-26",null,null,null,null,null,null,0]
["2020-02-26",null,null,null,null,null,null,0]
["2020-02-26",null,null,null,null,null,null,0]
["2020-02-26",null,null,null,null,null,null,0]
["2020-02-27",null,null,null,null,null,null,0]
["2020-02-29",null,null,null,null,null,null,0]
["2020-02-29",null,null,null,null,null,null,0]
["2020-02-29",null,null,null,null,null,null,{"$f":"H133-E134+G134","v":0}]
["2020-02-29",null,null,null,null,null,null,0]
["2020-02-29",null,null,null,null,null,null,0]
["2020-02-29",null,null,null,null,null,null,0]
["2020-02-29",null,null,null,null,null,null,0]
["2020-02-29",null,null,null,null,null,null,0]
["2020-02-29",null,null,null,null,null,null,0]
["2020-02-29",null,null,null,null,null,null,0]
["2020-02-29",null,null,null,null,null,null,0]
["2020-02-29",null,null,null,null,null,null,0]
["2020-02-29",null,null,null,null,null,null,0]
["2020-02-29",null,null,null,null,null,null,0]
["2020-02-29",null,null,null,null,null,null,0]
["2020-02-29",null,null,null,null,null,null,0]
["2020-02-29",null,null,null,null,null,null,0]
["2020-02-29",null,null,null,null,null,null,0]
["2020-02-29",null,null,null,null,null,null,0]
["2020-02-29",null,null,null,null,null,null,0]
["2020-02-29",null,null,null,null,null,null,0]
["2020-02-29",null,null,null,null,null,null,0]
["2020-02-29",null,null,null,null,null,null,0]
["2020-02-29",null,null,null,null,null,null,0]
["2020-02-29",null,null,null,null,null,null,0]
["2020-02-29",null,null,null,null,null,null,0]
["2020-02-29",null,null,null,null,null,null,0]
["2020-02-29",null,null,null,null,null,null,0]
["2020-02-29",null,null,null,null,null,null,0]
["2020-02-29",null,null,null,null,null,null,0]
["2020-02-29",null,null,null,null,null,null,0]
["2020-02-29",null,null,null,null,null,null,0]
["2020-02-29",null,null,null,null,null,null,0]
["2020-02-29",null,null,null,null,null,null,0]
["2020-02-29",null,null,null,null,null,null,0]
["2020-02-29",null,null,null,null,null,null,0]
["2020-03-02",null,null,null,null,null,null,0]
["2020-03-02",null,null,null,null,null,null,0]
["2020-03-02",null,null,null,null,null,null,0]
["2020-03-04",null,null,null,null,null,null,0]
["2020-03-04",null,null,null,null,null,null,0]
["2020-03-04",null,null,null,null,null,null,0]
["2020-03-05",null,null,null,null,null,null,0]
["2020-03-05",null,null,null,null,null,null,0]
["2020-03-06",null,null,null,null,null,null,0]
["2020-03-07",null,null,null,null,null,null,0]
["2020-03-07",null,null,null,null,null,null,0]
["2020-03-09",null,null,null,null,null,null,0]
["2020-03-10",null,null,null,null,null,null,0]
["2020-03-10",null,null,null,null,null,null,0]
["2020-03-10",null,null,null,null,null,null,0]
["2020-03-10",null,null,null,null,null,null,0]
["2020-03-10",null,null,null,null,null,null,0]
["2020-03-10",null,null,null,null,null,null,0]
["2020-03-12",null,null,null,null,null,null,0]
["2020-03-13",null,null,null,null,null,null,0]
["2020-03-13",null,null,null,null,null,null,0]
["2020-03-13",null,null,null,null,null,null,0]
["2020-03-16",null,null,null,null,null,null,0]
["2020-03-16",null,null,null,null,null,null,0]
["2020-03-16",null,null,null,null,null,null,0]
["2020-03-17",null,null,null,null,null,null,0]
["2020-03-20",null,null,null,null,null,null,0]
["2020-03-21",null,null,null,null,null,null,0]
["2020-03-21",null,null,null,null,null,null,0]
["2020-03-24",null,null,null,null,null,null,0]
["2020-03-26",null,null,null,null,null,null,{"$f":"H197-E198+G198","v":0}]
["2020-03-26",null,null,null,null,null,null,0]
["2020-03-30",null,null,null,null,null,null,0]
["2020-03-30",null,null,null,null,null,null,0]
["2020-03-31",null,null,null,null,null,null,0]
["2020-03-31",null,null,null,null,null,null,0]
["2020-03-31",null,null,null,null,null,null,0]
["2020-03-31",null,null,null,null,null,null,0]
["2020-03-31",null,null,null,null,null,null,0]
["2020-03-31",null,null,null,null,null,null,0]
["2020-03-31",null,null,null,null,null,null,0]
["2020-03-31",null,null,null,null,null,null,0]
["2020-03-31",null,null,null,null,null,null,0]
["2020-03-31",null,null,null,null,null,null,0]
["2020-03-31",null,null,null,null,null,null,0]
["2020-03-31",null,null,null,null,null,null,0]
["2020-03-31",null,null,null,null,null,null,0]
["2020-03-31",null,null,null,null,null,null,0]
["2020-03-31",null,null,null,null,null,null,0]
["2020-03-31",null,null,null,null,null,null,0]
["2020-03-31",null,null,null,null,null,null,0]
["2020-03-31",null,null,null,null,null,null,0]
["2020-03-31",null,null,null,null,null,null,0]
["2020-03-31",null,null,null,null,null,null,0]
["2020-03-31",null,null,null,null,null,null,0]
["2020-03-31",null,null,null,null,null,null,0]
["2020-04-01",null,null,null,null,null,null,0]
["2020-04-01",null,null,null,null,null,null,0]
["2020-04-06",null,null,null,null,null,null,0]
["2020-04-07",null,null,null,null,null,null,0]
["2020-04-07",null,null,null,null,null,null,0]
["2020-04-07",null,null,null,null,null,null,0]
["2020-04-09",null,null,null,null,null,null,0]
["2020-04-10",null,null,null,null,null,null,0]
["2020-04-10",null,null,null,null,null,null,0]
["2020-04-10",null,null,null,null,null,null,0]
["2020-04-10",null,null,null,null,null,null,0]
["2020-04-10",null,null,null,null,null,null,0]
["2020-04-10",null,null,null,null,null,null,0]
["2020-04-12",null,null,null,null,null,null,0]
["2020-04-12",null,null,null,null,null,null,0]
["2020-04-13",null,null,null,null,null,null,0]
["2020-04-14",null,null,null,null,null,null,0]
["2020-04-14",null,null,null,null,null,null,0]
["2020-04-14",null,null,null,null,null,null,0]
["2020-04-16",null,null,null,null,null,null,0]
["2020-04-17",null,null,null,null,null,null,0]
["2020-04-20",null,null,null,null,null,null,0]
["2020-04-20",null,null,null,null,null,null,0]
["2020-04-21",null,null,null,null,null,null,0]
["2020-04-21",null,null,null,null,null,null,0]
["2020-04-23",null,null,null,null,null,null,0]
["2020-04-23",null,null,null,null,null,null,0]
["2020-04-23",null,null,null,null,null,null,0]
["2020-04-24",null,null,null,null,null,null,0]
["2020-04-24",null,null,null,null,null,null,0]
["2020-04-27",null,null,null,null,null,null,0]
["2020-04-28",null,null,null,null,null,null,0]
["2020-04-28",null,null,null,null,null,null,0]
["2020-04-30",null,null,null,null,null,null,0]
["2020-04-30",null,null,null,null,null,null,0]
["2020-04-30",null,null,null,null,null,null,0]
["2020-04-30",null,null,null,null,null,null,0]
["2020-04-30",null,null,null,null,null,null,0]
["2020-04-30",null,null,null,null,null,null,{"$f":"H261-E262+G262","v":0}]
["2020-04-30",null,null,null,null,null,null,0]
["2020-04-30",null,null,null,null,null,null,0]
["2020-04-30",null,null,null,null,null,null,0]
["2020-04-30",null,null,null,null,null,null,0]
["2020-04-30",null,null,null,null,null,null,0]
["2020-04-30",null,null,null,null,null,null,0]
["2020-04-30",null,null,null,null,null,null,0]
["2020-04-30",null,null,null,null,null,null,0]
["2020-04-30",null,null,null,null,null,null,0]
["2020-04-30",null,null,null,null,null,null,0]
["2020-04-30",null,null,null,null,null,null,0]
["2020-04-30",null,null,null,null,null,null,0]
["2020-04-30",null,null,null,null,null,null,0]
["2020-04-30",null,null,null,null,null,null,0]
["2020-04-30",null,null,null,null,null,null,0]
["2020-04-30",null,null,null,null,null,null,0]
["2020-04-30",null,null,null,null,null,null,0]
["2020-04-30",null,null,null,null,null,null,0]
["2020-05-02",null,null,null,null,null,null,0]
["2020-05-03",null,null,null,null,null,null,0]
["2020-05-03",null,null,null,null,null,null,0]
["2020-05-03",null,null,null,null,null,null,0]
["2020-05-04",null,null,null,null,null,null,0]
["2020-05-04",null,null,null,null,null,null,0]
["2020-05-06",null,null,null,null,null,null,0]
["2020-05-07",null,null,null,null,null,null,0]
["2020-05-07",null,null,null,null,null,null,0]
["2020-05-07",null,null,null,null,null,null,0]
["2020-05-10",null,null,null,null,null,null,0]
["2020-05-10",null,null,null,null,null,null,0]
["2020-05-10",null,null,null,null,null,null,0]
["2020-05-10",null,null,null,null,null,null,0]
["2020-05-10",null,null,null,null,null,null,0]
["2020-05-10",null,null,null,null,null,null,0]
["2020-05-11",null,null,null,null,null,null,0]
["2020-05-13",null,null,null,null,null,null,0]
["2020-05-15",null,null,null,null,null,null,0]
["2020-05-16",null,null,null,null,null,null,0]
["2020-05-17",null,null,null,null,null,null,0]
["2020-05-18",null,null,null,null,null,null,0]
["2020-05-20",null,null,null,null,null,null,0]
["2020-05-21",null,null,null,null,null,null,0]
["2020-05-21",null,null,null,null,null,null,0]
["2020-05-24",null,null,null,null,null,null,0]
["2020-05-25",null,null,null,null,null,null,0]
["2020-05-27",null,null,null,null,null,null,0]
["2020-05-27",null,null,null,null,null,null,0]
["2020-05-27",null,null,null,null,null,null,0]
["2020-05-27",null,null,null,null,null,null,0]
["2020-05-27",null,null,null,null,null,null,0]
["2020-05-31",null,null,null,null,null,null,0]
["2020-05-31",null,null,null,null,null,null,0]
["2020-05-31",null,null,null,null,null,null,0]
["2020-05-31",null,null,null,null,null,null,0]
["2020-05-31",null,null,null,null,null,null,0]
["2020-05-31",null,null,null,null,null,null,0]
["2020-05-31",null,null,null,null,null,null,0]
["2020-05-31",null,null,null,null,null,null,0]
["2020-05-31",null,null,null,null,null,null,0]
["2020-05-31",null,null,null,null,null,null,0]
["2020-05-31",null,null,null,null,null,null,0]
["2020-05-31",null,null,null,null,null,null,0]
["2020-05-31",null,null,null,null,null,null,0]
["2020-05-31",null,null,null,null,null,null,{"$f":"H325-E326+G326","v":0}]
["2020-05-31",null,null,null,null,null,null,0]
["2020-05-31",null,null,null,null,null,null,0]
["2020-05-31",null,null,null,null,null,null,0]
["2020-05-31",null,null,null,null,null,null,0]
["2020-05-31",null,null,null,null,null,null,0]
["2020-05-31",null,null,null,null,null,null,0]
["2020-05-31",null,null,null,null,null,null,0]
["2020-05-31",null,null,null,null,null,null,0]
["2020-05-31",null,null,null,null,null,null,0]
["2020-05-31",null,null,null,null,null,null,0]
["2020-05-31",null,null,null,null,null,null,0]
["2020-05-31",null,null,null,null,null,null,0]
["2020-05-31",null,null,null,null,null,null,0]
["2020-05-31",null,null,null,null,null,null,0]
["2020-05-31",null,null,null,null,null,null,0]
["2020-05-31",null,null,null,null,null,null,0]
["2020-05-31",null,null,null,null,null,null,0]
["2020-05-31",null,null,null,null,null,null,0]
["2020-05-31",null,null,null,null,null,null,0]
["2020-05-31",null,null,null,null,null,null,0]
["2020-05-31",null,null,null,null,null,null,0]
["2020-05-31",null,null,null,null,null,null,0]
["2020-05-31",null,null,null,null,null,null,0]
["2020-06-01",null,null,null,null,null,null,0]
["2020-06-02",null,null,null,null,null,null,0]
["2020-06-02",null,null,null,null,null,null,0]
["2020-06-06",null,null,null,null,null,null,0]
["2020-06-07",null,null,null,null,null,null,0]
["2020-06-07",null,null,null,null,null,null,0]
["2020-06-07",null,null,null,null,null,null,0]
["2020-06-10",null,null,null,null,null,null,0]
["2020-06-10",null,null,null,null,null,null,0]
["2020-06-10",null,null,null,null,null,null,0]
["2020-06-10",null,null,null,null,null,null,0]
["2020-06-10",null,null,null,null,null,null,0]
["2020-06-13",null,null,null,null,null,null,0]
["2020-06-16",null,null,null,null,null,null,0]
["2020-06-17",null,null,null,null,null,null,0]
["2020-06-20",null,null,null,null,null,null,0]
["2020-06-21",null,null,null,null,null,null,0]
["2020-06-21",null,null,null,null,null,null,0]
["2020-06-24",null,null,null,null,null,null,0]
["2020-06-25",null,null,null,null,null,null,0]
["2020-06-25",null,null,null,null,null,null,0]
["2020-06-30",null,null,null,null,null,null,0]
["2020-06-30",null,null,null,null,null,null,0]
["2020-06-30",null,null,null,null,null,null,0]
["2020-06-30",null,null,null,null,null,null,0]
["2020-06-30",null,null,null,null,null,null,0]
["2020-06-30",null,null,null,null,null,null,0]
["2020-06-30",null,null,null,null,null,null,0]
["2020-06-30",null,null,null,null,null,null,0]
["2020-06-30",null,null,null,null,null,null,0]
["2020-06-30",null,null,null,null,null,null,0]
["2020-06-30",null,null,null,null,null,null,0]
["2020-06-30",null,null,null,null,null,null,0]
["2020-06-30",null,null,null,null,null,null,0]
["2020-06-30",null,null,null,null,null,null,0]
["2020-06-30",null,null,null,null,null,null,0]
["2020-06-30",null,null,null,null,null,null,0]
["2020-06-30",null,null,null,null,null,null,0]
["2020-06-30",null,null,null,null,null,null,0]
["2020-06-30",null,null,null,null,null,null,0]
["2020-06-30",null,null,null,null,null,null,{"$f":"H389-E390+G390","v":0}]
["2020-06-30",null,null,null,null,null,null,0]
["2020-06-30",null,null,null,null,null,null,0]
["2020-07-01",null,null,null,null,null,null,0]
["2020-07-01",null,null,null,null,null,null,0]
["2020-07-01",null,null,null,null,null,null,0]
["2020-07-02",null,null,null,null,null,null,0]
["2020-07-02",null,null,null,null,null,null,0]
["2020-07-02",null,null,null,null,null,null,0]
["2020-07-06",null,null,null,null,null,null,0]
["2020-07-06",null,null,null,null,null,null,0]
["2020-07-07",null,null,null,null,null,null,0]
["2020-07-07",null,null,null,null,null,null,0]
["2020-07-07",null,null,null,null,null,null,0]
["2020-07-08",null,null,null,null,null,null,0]
["2020-07-09",null,null,null,null,null,null,0]
["2020-07-10",null,null,null,null,null,null,0]
["2020-07-10",null,null,null,null,null,null,0]
["2020-07-10",null,null,null,null,null,null,0]
["2020-07-10",null,null,null,null,null,null,0]
["2020-07-10",null,null,null,null,null,null,0]
["2020-07-10",null,null,null,null,null,null,0]
["2020-07-10",null,null,null,null,null,null,0]
["2020-07-10",null,null,null,null,null,null,0]
["2020-07-13",null,null,null,null,null,null,0]
["2020-07-16",null,null,null,null,null,null,0]
["2020-07-17",null,null,null,null,null,null,0]
["2020-07-17",null,null,null,null,null,null,0]
["2020-07-17",null,null,null,null,null,null,0]
["2020-07-17",null,null,null,null,null,null,0]
["2020-07-20",null,null,null,null,null,null,0]
["2020-07-20",null,null,null,null,null,null,0]
["2020-07-21",null,null,null,null,null,null,0]
["2020-07-21",null,null,null,null,null,null,0]
["2020-07-21",null,null,null,null,null,null,0]
["2020-07-24",null,null,null,null,null,null,0]
["2020-07-27",null,null,null,null,null,null,0]
["2020-07-27",null,null,null,null,null,null,0]
["2020-07-27",null,null,null,null,null,null,0]
["2020-07-30",null,null,null,null,null,null,0]
["2020-07-31",null,null,null,null,null,null,0]
["2020-07-31",null,null,null,null,null,null,0]
["2020-07-31",null,null,null,null,null,null,0]
["2020-07-31",null,null,null,null,null,null,0]
["2020-07-31",null,null,null,null,null,null,0]
["2020-07-31",null,null,null,null,null,null,0]
["2020-07-31",null,null,null,null,null,null,0]
["2020-07-31",null,null,null,null,null,null,0]
["2020-07-31",null,null,null,null,null,null,0]
["2020-07-31",null,null,null,null,null,null,0]
["2020-07-31",null,null,null,null,null,null,0]
["2020-07-31",null,null,null,null,null,null,0]
["2020-07-31",null,null,null,null,null,null,0]
["2020-07-31",null,null,null,null,null,null,0]
["2020-07-31",null,null,null,null,null,null,0]
["2020-07-31",null,null,null,null,null,null,0]
["2020-07-31",null,null,null,null,null,null,0]
["2020-07-31",null,null,null,null,null,null,0]
["2020-07-31",null,null,null,null,null,null,0]
["2020-07-31",null,null,null,null,null,null,0]
["2020-07-31",null,null,null,null,null,null,0]
["2020-07-31",null,null,null,null,null,null,0]
["2020-07-31",null,null,null,null,null,null,0]
["2020-07-31",null,null,null,null,null,null,0]
["2020-07-31",null,null,null,null,null,null,{"$f":"H453-E454+G454","v":0}]
["2020-07-31",null,null,null,null,null,null,0]
["2020-07-31",null,null,null,null,null,null,0]
["2020-07-31",null,null,null,null,null,null,0]
["2020-08-03",null,null,null,null,null,null,0]
["2020-08-03",null,null,null,null,null,null,0]
["2020-08-05",null,null,null,null,null,null,0]
["2020-08-06",null,null,null,null,null,null,0]
["2020-08-07",null,null,null,null,null,null,0]
["2020-08-07",null,null,null,null,null,null,0]
["2020-08-07",null,null,null,null,null,null,0]
["2020-08-08",null,null,null,null,null,null,0]
["2020-08-10",null,null,null,null,null,null,0]
["2020-08-10",null,null,null,null,null,null,0]
["2020-08-10",null,null,null,null,null,null,0]
["2020-08-10",null,null,null,null,null,null,0]
["2020-08-10",null,null,null,null,null,null,0]
["2020-08-13",null,null,null,null,null,null,0]
["2020-08-16",null,null,null,null,null,null,0]
["2020-08-17",null,null,null,null,null,null,0]
["2020-08-17",null,null,null,null,null,null,0]
["2020-08-20",null,null,null,null,null,null,0]
["2020-08-21",null,null,null,null,null,null,0]
["2020-08-21",null,null,null,null,null,null,0]
["2020-08-24",null,null,null,null,null,null,0]
["2020-08-26",null,null,null,null,null,null,0]
["2020-08-26",null,null,null,null,null,null,0]
["2020-08-28",null,null,null,null,null,null,0]
["2020-08-31",null,null,null,null,null,null,0]
["2020-08-31",null,null,null,null,null,null,0]
["2020-08-31",null,null,null,null,null,null,0]
["2020-08-31",null,null,null,null,null,null,0]
["2020-08-31",null,null,null,null,null,null,0]
["2020-08-31",null,null,null,null,null,null,0]
["2020-08-31",null,null,null,null,null,null,0]
["2020-08-31",null,null,null,null,null,null,0]
["2020-08-31",null,null,null,null,null,null,0]
["2020-08-31",null,null,null,null,null,null,0]
["2020-08-31",null,null,null,null,null,null,0]
["2020-08-31",null,null,null,null,null,null,0]
["2020-08-31",null,null,null,null,null,null,0]
["2020-08-31",null,null,null,null,null,null,0]
["2020-08-31",null,null,null,null,null,null,0]
["2020-08-31",null,null,null,null,null,null,0]
["2020-08-31",null,null,null,null,null,null,0]
["2020-08-31",null,null,null,null,null,null,0]
["2020-08-31",null,null,null,null,null,null,0]
["2020-08-31",null,null,null,null,null,null,0]
["2020-08-31",null,null,null,null,null,null,0]
["2020-08-31",null,null,null,null,null,null,0]
["2020-08-31",null,null,null,null,null,null,0]
["2020-08-31",null,null,null,null,null,null,0]
["2020-08-31",null,null,null,null,null,null,0]
["2020-08-31",null,null,null,null,null,null,0]
["2020-08-31",null,null,null,null,null,null,0]
["2020-08-31",null,null,null,null,null,null,0]
["2020-08-31",null,null,null,null,null,null,0]
["2020-08-31",null,null,null,null,null,null,0]
["2020-08-31",null,null,null,null,null,null,0]
["2020-08-31",null,null,null,null,null,null,0]
["2020-08-31",null,null,null,null,null,null,0]
["2020-08-31",null,null,null,null,null,null,0]
["2020-08-31",null,null,null,null,null,null,0]
["2020-08-31",null,null,null,null,null,null,0]
["2020-08-31",null,null,null,null,null,null,{"$f":"H517-E518+G518","v":0}]
["2020-08-31",null,null,null,null,null,null,0]
["2020-08-31",null,null,null,null,null,null,0]
["2020-09-01",null,null,null,null,null,null,0]
["2020-09-01",null,null,null,null,null,null,0]
["2020-09-01",null,null,null,null,null,null,0]
["2020-09-05",null,null,null,null,null,null,0]
["2020-09-06",null,null,null,null,null,null,0]
["2020-09-07",null,null,null,null,null,null,0]
["2020-09-07",null,null,null,null,null,null,0]
["2020-09-09",null,null,null,null,null,null,0]
["2020-09-10",null,null,null,null,null,null,0]
["2020-09-10",null,null,null,null,null,null,0]
["2020-09-10",null,null,null,null,null,null,0]
["2020-09-10",null,null,null,null,null,null,0]
["2020-09-10",null,null,null,null,null,null,0]
["2020-09-13",null,null,null,null,null,null,0]
["2020-09-16",null,null,null,null,null,null,0]
["2020-09-16",null,null,null,null,null,null,0]
["2020-09-17",null,null,null,null,null,null,0]
["2020-09-18",null,null,null,null,null,null,0]
["2020-09-20",null,null,null,null,null,null,0]
["2020-09-21",null,null,null,null,null,null,0]
["2020-09-21",null,null,null,null,null,null,0]
["2020-09-21",null,null,null,null,null,null,0]
["2020-09-21",null,null,null,null,null,null,0]
["2020-09-24",null,null,null,null,null,null,0]
["2020-09-25",null,null,null,null,null,null,0]
["2020-09-29",null,null,null,null,null,null,0]
["2020-09-30",null,null,null,null,null,null,0]
["2020-09-30",null,null,null,null,null,null,0]
["2020-09-30",null,null,null,null,null,null,0]
["2020-09-30",null,null,null,null,null,null,0]
["2020-09-30",null,null,null,null,null,null,0]
["2020-09-30",null,null,null,null,null,null,0]
["2020-09-30",null,null,null,null,null,null,0]
["2020-09-30",null,null,null,null,null,null,0]
["2020-09-30",null,null,null,null,null,null,0]
["2020-09-30",null,null,null,null,null,null,0]
["2020-09-30",null,null,null,null,null,null,0]
["2020-09-30",null,null,null,null,null,null,0]
["2020-09-30",null,null,null,null,null,null,0]
["2020-09-30",null,null,null,null,null,null,0]
["2020-09-30",null,null,null,null,null,null,0]
["2020-09-30",null,null,null,null,null,null,0]
["2020-09-30",null,null,null,null,null,null,0]
["2020-09-30",null,null,null,null,null,null,0]
["2020-09-30",null,null,null,null,null,null,0]
["2020-09-30",null,null,null,null,null,null,0]
["2020-09-30",null,null,null,null,null,null,0]
["2020-09-30",null,null,null,null,null,null,0]
["2020-09-30",null,null,null,null,null,null,0]
["2020-09-30",null,null,null,null,null,null,0]
["2020-09-30",null,null,null,null,null,null,0]
["2020-09-30",null,null,null,null,null,null,0]
["2020-09-30",null,null,null,null,null,null,0]
["2020-09-30",null,null,null,null,null,null,0]
["2020-09-30",null,null,null,null,null,null,0]
["2020-09-30",null,null,null,null,null,null,0]
["2020-09-30",null,null,null,null,null,null,0]
["2020-09-30",null,null,null,null,null,null,0]
["2020-10-01",null,null,null,null,null,null,0]
["2020-10-01",null,null,null,null,null,null,0]
["2020-10-01",null,null,null,null,null,null,0]
["2020-10-01",null,null,null,null,null,null,{"$f":"H581-E582+G582","v":0}]
["2020-10-01",null,null,null,null,null,null,0]
["2020-10-01",null,null,null,null,null,null,0]
["2020-10-01",null,null,null,null,null,null,0]
["2020-10-02",null,null,null,null,null,null,0]
["2020-10-02",null,null,null,null,null,null,0]
["2020-10-03",null,null,null,null,null,null,0]
["2020-10-05",null,null,null,null,null,null,0]
["2020-10-06",null,null,null,null,null,null,0]
["2020-10-06",null,null,null,null,null,null,0]
["2020-10-06",null,null,null,null,null,null,0]
["2020-10-07",null,null,null,null,null,null,0]
["2020-10-07",null,null,null,null,null,null,0]
["2020-10-08",null,null,null,null,null,null,0]
["2020-10-08",null,null,null,null,null,null,0]
["2020-10-09",null,null,null,null,null,null,0]
["2020-10-09",null,null,null,null,null,null,0]
["2020-10-09",null,null,null,null,null,null,0]
["2020-10-09",null,null,null,null,null,null,0]
["2020-10-09",null,null,null,null,null,null,0]
["2020-10-10",null,null,null,null,null,null,0]
["2020-10-10",null,null,null,null,null,null,0]
["2020-10-10",null,null,null,null,null,null,0]
["2020-10-10",null,null,null,null,null,null,0]
["2020-10-10",null,null,null,null,null,null,0]
["2020-10-10",null,null,null,null,null,null,0]
["2020-10-10",null,null,null,null,null,null,0]
["2020-10-10",null,null,null,null,null,null,0]
["2020-10-10",null,null,null,null,null,null,0]
["2020-10-10",null,null,null,null,null,null,0]
["2020-10-12",null,null,null,null,null,null,0]
["2020-10-13",null,null,null,null,null,null,0]
["2020-10-14",null,null,null,null,null,null,0]
["2020-10-15",null,null,null,null,null,null,0]
["2020-10-15",null,null,null,null,null,null,0]
["2020-10-17",null,null,null,null,null,null,0]
["2020-10-19",null,null,null,null,null,null,0]
["2020-10-20",null,null,null,null,null,null,0]
["2020-10-21",null,null,null,null,null,null,0]
["2020-10-21",null,null,null,null,null,null,0]
["2020-10-21",null,null,null,null,null,null,0]
["2020-10-22",null,null,null,null,null,null,0]
["2020-10-24",null,null,null,null,null,null,0]
["2020-10-26",null,null,null,null,null,null,0]
["2020-10-28",null,null,null,null,null,null,0]
["2020-10-28",null,null,null,null,null,null,0]
["2020-10-31",null,null,null,null,null,null,0]
["2020-10-31",null,null,null,null,null,null,0]
["2020-10-31",null,null,null,null,null,null,0]
["2020-10-31",null,null,null,null,null,null,0]
["2020-10-31",null,null,null,null,null,null,0]
["2020-10-31",null,null,null,null,null,null,0]
["2020-10-31",null,null,null,null,null,null,0]
["2020-10-31",null,null,null,null,null,null,0]
["2020-10-31",null,null,null,null,null,null,0]
["2020-10-31",null,null,null,null,null,null,0]
["2020-10-31",null,null,null,null,null,null,0]
["2020-10-31",null,null,null,null,null,null,0]
["2020-10-31",null,null,null,null,null,null,0]
["2020-10-31",null,null,null,null,null,null,0]
["2020-10-31",null,null,null,null,null,null,0]
["2020-10-31",null,null,null,null,null,null,0]
["2020-10-31",null,null,null,null,null,null,0]
["2020-10-31",null,null,null,null,null,null,0]
["2020-10-31",null,null,null,null,null,null,{"$f":"H645-E646+G646","v":0}]
["2020-10-31",null,null,null,null,null,null,0]
["2020-10-31",null,null,null,null,null,null,0]
["2020-10-31",null,null,null,null,null,null,0]
["2020-10-31",null,null,null,null,null,null,0]
["2020-10-31",null,null,null,null,null,null,0]
["2020-10-31",null,null,null,null,null,null,0]
["2020-10-31",null,null,null,null,null,null,0]
["2020-10-31",null,null,null,null,null,null,0]
["2020-10-31",null,null,null,null,null,null,0]
["2020-10-31",null,null,null,null,null,null,0]
["2020-10-31",null,null,null,null,null,null,0]
["2020-10-31",null,null,null,null,null,null,0]
["2020-11-02",null,null,null,null,null,null,0]
["2020-11-02",null,null,null,null,null,null,0]
["2020-11-02",null,null,null,null,null,null,0]
["2020-11-05",null,null,null,null,null,null,0]
["2020-11-06",null,null,null,null,null,null,0]
["2020-11-06",null,null,null,null,null,null,0]
["2020-11-07",null,null,null,null,null,null,0]
["2020-11-07",null,null,null,null,null,null,0]
["2020-11-09",null,null,null,null,null,null,0]
["2020-11-09",null,null,null,null,null,null,0]
["2020-11-09",null,null,null,null,null,null,0]
["2020-11-10",null,null,null,null,null,null,0]
["2020-11-10",null,null,null,null,null,null,0]
["2020-11-10",null,null,null,null,null,null,0]
["2020-11-10",null,null,null,null,null,null,0]
["2020-11-10",null,null,null,null,null,null,0]
["2020-11-10",null,null,null,null,null,null,0]
["2020-11-10",null,null,null,null,null,null,0]
["2020-11-13",null,null,null,null,null,null,0]
["2020-11-17",null,null,null,null,null,null,0]
["2020-11-21",null,null,null,null,null,null,0]
["2020-11-24",null,null,null,null,null,null,0]
["2020-11-30",null,null,null,null,null,null,0]
["2020-11-30",null,null,null,null,null,null,0]
["2020-11-30",null,null,null,null,null,null,0]
["2020-11-30",null,null,null,null,null,null,0]
["2020-11-30",null,null,null,null,null,null,0]
["2020-11-30",null,null,null,null,null,null,0]
["2020-11-30",null,null,null,null,null,null,0]
["2020-11-30",null,null,null,null,null,null,0]
["2020-12-07",null,null,null,null,null,null,0]
["2020-12-07",null,null,null,null,null,null,0]
["2020-12-10",null,null,null,null,null,null,0]
["2020-12-10",null,null,null,null,null,null,0]
["2020-12-10",null,null,null,null,null,null,0]
["2020-12-10",null,null,null,null,null,null,0]
["2020-12-10",null,null,null,null,null,null,0]
["2020-12-13",null,null,null,null,null,null,0]
["2020-12-21",null,null,null,null,null,null,0]
["2020-12-24",null,null,null,null,null,null,0]
["2020-12-28",null,null,null,null,null,null,0]

{"sheet":"Liste","index":1,"n_rows":58,"n_cols":2,"rows_kept":58,"cut":false,"hidden":false,"merged":[]}
["Libellé","Mode"]
["CARSAT retraite Eric","Dépôt espèces"]
["CARSAT retraite Solange","Dépôt chèque "]
["AGiRC - ARRCO Eric","Retrait espèces"]
["AGiRC - ARRCO Solange","Virt"]
["DRFIP Retraite Solange","Prélvt"]
["R6","Carte"]
["CPAM Rmbt soins"]
["MICILS Rmbt soins"]
["Rmbt impots"]
["Rmbt divers"]
["Rmbt parents"]
["Sous-total rmbt divers"]
["De livret A"]
["De LDD Eric"]
["De LDD Solange"]
["Loyer Lyon"]
["EDF - GDF Lyon"]
["Eau Lyon"]
["Taxe habitation Lyon"]
["Free la fibre Lyon"]
["Free Eric"]
["Free Soalnge"]
["Free belle mère"]
["Entretien divers"]
["Ménage"]
["Assurance Lyon"]
["EDF Bussières"]
["Eau Bussières"]
["Taxe foncière Bussières"]
["Taxe habitation  Bussières"]
["Assurance Bussières"]
["D16"]
["APICIL cout mutuelle"]
["Honoraire médecins"]
["Labo"]
["Radio"]
["Pharmacie"]
["Denier du culte"]
["RCF"]
["Monastère"]
["A CC Eric"]
["A CC Solange"]
["D27"]
["A LDD Eric"]
["A LDD Solange"]
["A livret A"]
["A livret Typhaine"]
["A livret Benoit"]
["Essence"]
["Entretien"]
["Assurance"]
["Péages"]
["Coiffeur"]
["D38"]
["Ilnvestissement"]
["D40"]
["Agio banque"]